Cogmind - Beta 15 *** ADVENTURER MODE // 2025.06.22 @ 09:58:23 Player: Jefffff Result: Destroyed by Y-45 Defender with Heavy Assault Rifle Performance ------------- Evolutions (0) 0 Regions Visited (3) 600 Robots Destroyed (23) 115 Value Destroyed (752) 752 Prototype IDs (0) 0 Alien Tech Used (0) 0 Bonus (0) 0 TOTAL SCORE: 1467 Bonus ------- None Cogmind --------- Core Integrity 0/250 Matter 260/300 Energy 125/125 System Corruption 0% Temperature Cool (36) Movement Walking (400) Ox4 Location -9/Recycling Parts ------- > --- POWER (1) -------- Light Ion Engine > --- PROPULSION (2) --- Aluminum Leg Aluminum Leg > --- UTILITY (2) ------ Huge Storage Unit Light Armor Plating > --- WEAPON (2) ------- Light Cannon Slug Cannon > --- INVENTORY (25) --- Humpback Sensor Array Scrap Shield Small Laser Small Laser Light Assault Rifle Light Assault Rifle Rocket Launcher Peak State ------------ > --- POWER ------------ Ion Engine > --- PROPULSION ------- Aluminum Leg Aluminum Leg > --- UTILITY ---------- Medium Storage Unit > --- WEAPON ----------- Battle Rifle Slug Cannon > --- INVENTORY -------- Aluminum Leg Huge Storage Unit Humpback Sensor Array Small Laser Small Laser Light Assault Rifle Light Assault Rifle Light Cannon [Rating: 11] Favorites ----------- Power Ion Engine Engine Ion Engine Propulsion Aluminum Leg Leg Aluminum Leg Utility Medium Storage Unit Device Seismic Detector Storage Medium Storage Unit Protection Light Armor Plating Weapon Light Assault Rifle Energy Gun Small Laser Energy Cannon Subdweller Beam Cannon Ballistic Gun Light Assault Rifle Ballistic Cannon Slug Cannon Build | -11 -10 -10 -9 ------- Run | Yrd Mat Sub Rec Slots Evolved . | . . . . Power . | . . . . Propulsion . | . . . . Utility . | . . . . Weapon . | . . . . Parts Attached 21 | 6 3 9 3 Power 3 | 1 . 2 . Engine 3 | 1 . 2 . Core . | . . . . Reactor . | . . . . Propulsion 5 | 2 . 2 1 Treads . | . . . . Leg 5 | 2 . 2 1 Wheel . | . . . . Hover . | . . . . Flight . | . . . . Utility 5 | 1 2 1 1 Device 1 | . 1 . . Storage 3 | 1 1 1 . Processor . | . . . . Hackware . | . . . . Protection 1 | . . . 1 Artifact . | . . . . Weapon 8 | 2 1 4 1 Energy Gun 1 | 1 . . . Energy Cannon 2 | . . 2 . Ballistic Gun 3 | 1 1 1 . Ballistic Cannon 2 | . . 1 1 Launcher . | . . . . Special Weapon . | . . . . Impact Weapon . | . . . . Slashing Weapon . | . . . . Piercing Weapon . | . . . . Special Melee Weapon . | . . . . Unidentified Prototypes . | . . . . Parts Lost 5 | . . 3 2 Power 1 | . . 1 . Propulsion 2 | . . 1 1 Utility 1 | . . 1 . Weapon 1 | . . . 1 Highest Loss Streak 2 | . . 2 2 To Critical Strikes . | . . . . Average Backups 8 | . 7 9 9 Power . | . 1 . . Propulsion 1 | . 1 1 . Utility 2 | . 1 2 3 Weapon 4 | . 3 4 5 Tool/Special . | . . . . Unused Backups 8 | . 1 . 7 Power . | . . . . Propulsion . | . . . . Utility 3 | . . . 3 Weapon 5 | . 1 . 4 Tool/Special . | . . . . Average Slot Usage (%) 91 | . 98 91 86 Engine 13 | . 13 14 14 Leg 27 | . 27 27 27 Device 6 | . 13 6 . Storage 14 | . 14 14 14 Energy Cannon 4 | . . 7 . Ballistic Gun 16 | . 25 16 9 Ballistic Cannon 6 | . . 4 17 Peak Build Rating 11 | 6 8 11 11 Average Rating 9 | 4 7 9 10 On Entrance 6 | . 6 8 11 Naked Turns . | . . . . Heaviest Build 96 | 12 18 92 96 Greatest Support 20 | 20 20 20 20 Greatest Overweight (x) 8 | . . 4 8 Average Overweight (x) . | . . . 4 Largest Inventory Capacity 25 | 8 10 25 25 Average Capacity 13 | 7 9 10 25 Most Carried 13 | 2 10 11 13 Average Carried 9 | . 7 9 11 Final Capacity 25 | 8 10 25 25 Final Carried 11 | 1 10 11 10 Class Distribution -------------------- 100% | Mutant Dominant Class ---------------- Mutant | -10/Materials Mutant | -10/Subcaves Mutant | -9/Recycling Resources | -11 -10 -10 -9 ----------- Run | Yrd Mat Sub Rec Matter Collected 796 | 232 149 306 109 Remotely . | . . . . Salvage Created 851 | . 273 532 46 Parts 50 | . 15 32 3 Haulers Intercepted 1 | . 1 . . Recyclers Shooed . | . . . . Parts Field Recycled . | . . . . Retrieved Matter . | . . . . Parts Self-Destructed 14 | . . 14 . Prevented . | . . . . Kills | -11 -10 -10 -9 ------- Run | Yrd Mat Sub Rec Combat Hostiles Destroyed 20 | . 5 14 1 Guns 11 | . 5 6 . Cannons 9 | . . 8 1 Classes Destroyed 6 | . 2 4 . Hauler 1 | . 1 . . Turret 2 | . . 2 . Swarmer 3 | . . 3 . Grunt 5 | . 5 . . Sentry 2 | . . 1 1 Subdweller 10 | . . 10 . Best Kill Streak 5 | . 2 5 1 Combat Bots Only 3 | . 2 3 1 Max Kills in Single Turn 1 | . 1 1 1 Gunslinging . | . . . . Exploded . | . . . . Melee . | . . . . Uniques/NPCs Destroyed . | . . . . Combat | -11 -10 -10 -9 -------- Run | Yrd Mat Sub Rec Hostile Shots Fired 158 | . 21 125 12 Missed 54 | . 7 46 1 Hits 104 | . 14 79 11 Projectile 104 | . 14 79 11 Damage Taken 1129 | . 168 837 124 Core 252 | . 55 174 23 Absorbed by Shields . | . . . . Ignored by Resistances 302 | . 48 219 35 Regen/Repaired (Parts) 52 | . 52 . . Core Remaining (%) 100 | 100 . . . Volleys Fired 123 | . 38 81 4 Largest 2 | . 2 2 2 Hottest 105 | . 40 105 70 Shots Fired 240 | . 75 160 5 Gun 174 | . 75 99 . Cannon 66 | . . 61 5 Launcher . | . . . . Special . | . . . . Kinetic 197 | . 75 117 5 Thermal 43 | . . 43 . Explosive . | . . . . Electromagnetic . | . . . . Robot Hit Streak 27 | . 11 27 1 Robot Miss Streak 2 | . 2 2 2 Penetration Max . | . . . . Secondary Targets 2 | . 1 1 . Max Gunslinging Chain 1 | . 1 1 . Shots Hit Robots 156 | . 52 102 2 Core Hits 48 | . 18 29 1 Critical Kills 1 | . . . 1 Critical Parts Destroyed 2 | . 1 1 . Critical Strikes 6 | . 1 4 1 Destroy 6 | . 1 4 1 Melee Attacks . | . . . . Impact . | . . . . Slashing . | . . . . Piercing . | . . . . Sneak Attacks . | . . . . Combat Hostiles . | . . . . Follow-up Attacks . | . . . . Damage Inflicted 2119 | . 428 1635 56 Guns 1150 | . 425 725 . Cannons 966 | . . 910 56 Explosions . | . . . . Melee . | . . . . Ramming 3 | . 3 . . Kinetic 1549 | . 425 1068 56 Thermal 567 | . . 567 . Explosive . | . . . . Electromagnetic . | . . . . Impact . | . . . . Slashing . | . . . . Piercing . | . . . . Highest Corruption . | . . . . Average Corruption . | . . . . Corruption Purged . | . . . . Corruption Blocked . | . . . . Overload Shots . | . . . . Overflow Damage 16 | . . 16 . Projectiles 16 | . . 16 . Explosions . | . . . . Melee . | . . . . Knockbacks 4 | . . 4 . Impact . | . . . . Kinetic 4 | . . 4 . Secondary . | . . . . Self-Inflicted Damage . | . . . . Shots . | . . . . Rammed . | . . . . Targets Rammed 1 | . 1 . . Kicked 1 | . 1 . . Crushed . | . . . . Highest Temperature 48 | . 12 48 27 Average Temperature 18 | . 8 20 15 Received Heat Transfer 384 | . 84 246 54 Siege Activations . | . . . . Martial Activations . | . . . . Shielding Activations . | . . . . Robots Disrupted . | . . . . Combat Hostiles . | . . . . Robots Corrupted . | . . . . Combat Hostiles . | . . . . Parts Fried . | . . . . Impact Corruptions . | . . . . Robots Melted . | . . . . Combat Hostiles . | . . . . Parts Melted 3 | . . 3 . Heat Transferred 777 | . . 777 . Parts Sabotaged . | . . . . Parts Stolen . | . . . . Parts Stripped . | . . . . Power Chain Reactions . | . . . . Alert | -11 -10 -10 -9 ------- Run | Yrd Mat Sub Rec Maximum Alert Level . | . . . . Low Security (%) 100 | 100 100 . 100 Level 1 . | . . . . Level 2 . | . . . . Level 3 . | . . . . Level 4 . | . . . . Level 5 . | . . . . High Security . | . . . . Max Security . | . . . . Peak Influence 40 | . 40 . 20 Initial . | . . . . Average 2 | . 5 . . Influence Increases 340 | . 125 180 35 Destroy 0b10 Robot/C 240 | . 100 120 20 Destroy 0b10 Robot/NC 5 | . 5 . . Destroy Leader 12 | . 12 . . Successful Hack 22 | . 8 . 14 Destroy Structure 1 | . . . 1 Lose Combat Pursuer 60 | . . 60 . Influence Decreases 340 | . 125 180 35 Time Decay 320 | . 125 160 35 Lost Part 20 | . . 20 . Squads Dispatched 1 | . 1 . . Investigation 1 | . 1 . . Extermination . | . . . . Reinforcement . | . . . . Assault . | . . . . Garrison . | . . . . Intercept . | . . . . Searches Triggered . | . . . . Construction Impeded . | . . . . Haulers Reinforced . | . . . . Active Scanning Responses . | . . . . Cargo Convoy Interrupts . | . . . . Stealth | -11 -10 -10 -9 --------- Run | Yrd Mat Sub Rec Distress Signals . | . . . . Communications Jammed . | . . . . Distress Signals . | . . . . Times Spotted 34 | . 14 18 2 Peak Tracking Total 4 | . 3 4 1 Tactical Retreats 3 | . . 3 . Traps | -11 -10 -10 -9 ------- Run | Yrd Mat Sub Rec Traps Triggered 5 | . 3 2 . Indirectly . | . . . . Trap Hack Attempts . | . . . . Triggered . | . . . . Disarmed . | . . . . Reprogrammed . | . . . . Reused . | . . . . Traps Extracted . | . . . . Installed . | . . . . Triggered . | . . . . Machines | -11 -10 -10 -9 ---------- Run | Yrd Mat Sub Rec Machines Disabled 1 | . . 1 . Max in Single Turn 1 | . . 1 . Machines Repaired . | . . . . Machines Dismantled . | . . . . Machines Sabotaged . | . . . . Overloaded Fab Kills . | . . . . Hacking | -11 -10 -10 -9 --------- Run | Yrd Mat Sub Rec Machines Accessed 6 | . 3 . 3 Terminals 5 | . 2 . 3 Fabricators . | . . . . Repair Stations 1 | . 1 . . Recycling Units . | . . . . Scanalyzers . | . . . . Garrison Access . | . . . . Total Hacks 21 | . 9 . 12 Successful 11 | . 7 . 4 Failed 10 | . 2 . 8 Catastrophic . | . . . . Database Lockouts . | . . . . Manual 7 | . 2 . 5 Terminals 17 | . 5 . 12 Fabricators . | . . . . Repair Stations 4 | . 4 . . Recycling Units . | . . . . Scanalyzers . | . . . . Garrison Access . | . . . . Terminal Hacks 3 | . 1 . 2 Record 1 | . . . 1 Part Schematic 1 | . . . 1 Locate Traps 1 | . 1 . . Fabricator Hacks . | . . . . Repair Station Hacks 4 | . 4 . . Scan Component 2 | . 2 . . Repair 2 | . 2 . . Recycling Unit Hacks . | . . . . Scanalyzer . | . . . . Garrison Access Hacks . | . . . . Unauthorized Hacks 4 | . 2 . 2 Terminals 4 | . 2 . 2 Track 1 | . 1 . . Botnet 3 | . 1 . 2 Fabricators . | . . . . Repair Stations . | . . . . Recycling Units . | . . . . Scanalyzers . | . . . . Garrison Access . | . . . . Data Cores Recovered . | . . . . Used . | . . . . Hacking Detections 6 | . 3 . 3 Full Trace Events . | . . . . Feedback Events . | . . . . Feedback Blocked . | . . . . Robot Schematics Acquired . | . . . . Robots Built . | . . . . Authchips . | . . . . Time . | . . . . Total Robot Build Rating . | . . . . Part Schematics Acquired 1 | . . . 1 Parts Built . | . . . . Authchips . | . . . . Time . | . . . . Total Part Build Rating . | . . . . Parts Repaired 2 | . 2 . . Time 52 | . 52 . . Parts Recycled . | . . . . Recycled Matter . | . . . . Retrieved Matter . | . . . . Retrieved Components . | . . . . Parts Scanalyzed . | . . . . Part Schematics Acquired . | . . . . Parts Damaged . | . . . . Bothacking | -11 -10 -10 -9 ------------ Run | Yrd Mat Sub Rec Used RIF Installer . | . . . . Robots Hacked . | . . . . Non-combat . | . . . . Combat . | . . . . Robot Hacks Applied . | . . . . Relay Couplers Released . | . . . . Fabnet Peak Effective % . | . . . . Robots Rewired . | . . . . Allies Hacked . | . . . . Hacks Repelled . | . . . . Allies | -11 -10 -10 -9 -------- Run | Yrd Mat Sub Rec Total Allies . | . . . . Largest Group . | . . . . Highest-Rated Group . | . . . . Highest-Rated Ally . | . . . . Total Orders . | . . . . Ally Attacks . | . . . . Total Damage . | . . . . Kills . | . . . . Allies Corrupted . | . . . . Allies Melted . | . . . . Intel | -11 -10 -10 -9 ------- Run | Yrd Mat Sub Rec Active Infowar (turns) 1990 | . 781 1209 . Seismic 1990 | . 781 1209 . Robot Analysis Total . | . . . . Derelict Logs Recovered 2 | . . 2 . Drone Launches . | . . . . Drone Recoveries . | . . . . Exploration | -11 -10 -10 -9 ------------- Run | Yrd Mat Sub Rec Turns Passed 4508 | 64 811 2767 866 Spaces Moved 2086 | 48 445 1385 208 Core 8 | 8 . . . Treads . | . . . . Legs 2078 | 40 445 1385 208 Wheels . | . . . . Hover . | . . . . Flight . | . . . . Fastest Speed 50 | 50 120 120 400 Average Speed 188 | 108 120 179 409 Slowest Speed 680 | 120 120 400 680 Overloaded Moves . | . . . . Propulsion Burnouts . | . . . . Robots Hopped . | . . . . Potential Cave-ins . | . . . . Cave-ins Triggered . | . . . . Exploration Rate (%) 50 | 3 64 83 52 Regions Visited 3 Branch Regions 2 Pre-discovered Areas . | . . . . Known Exits Taken . | . . . . Unknown Exits Taken 3 | 1 1 1 . Scrap Searched 2 | . . 2 . Spaces Dug . | . . . . Terrain Destroyed 9 | . . 8 1 Melee . | . . . . Projectile 9 | . . 8 1 AOE . | . . . . Terrain Rammed . | . . . . Walls Destroyed . | . . . . Machines Disabled . | . . . . Actions | -11 -10 -10 -9 --------- Run | Yrd Mat Sub Rec Total 2454 | 60 661 1516 217 Wait 191 | . 159 32 . Move 2083 | 47 444 1384 208 Hop . | . . . . Pick Up 25 | 7 12 4 2 Fast Attach 2 | . 2 . . Attach 13 | 6 1 3 3 Detach . | . . . . Swap 8 | . 2 6 . Drop 8 | . 2 6 . Fire 123 | . 38 81 4 Melee . | . . . . Ram . | . . . . Kick 1 | . 1 . . Crush . | . . . . Escape Stasis . | . . . . Rewire . | . . . . Trap . | . . . . Miscellaneous . | . . . . Route ------- -11/Scrapyard -10/Materials (discovered 4 exits: [*Mat x2] / [*Min] / [*Sub]) -10/Subcaves (discovered 3 exits: *Mat x2 / *Rec) -9/Recycling History --------- Turn | Location | Event 6 | -11/Scrapyard | Discovered new exit (range 16) 65 | -11/Scrapyard | Entered Materials 297 | -10/Materials | Discovered new exit (range 12) 318 | -10/Materials | Build established: Mutant 354 | -10/Materials | Discovered new exit (range 16) 541 | -10/Materials | Repaired Aluminum Leg 568 | -10/Materials | Repaired Ion Engine 726 | -10/Materials | Discovered new exit (range 4) 866 | -10/Materials | Discovered new exit (range 8) 876 | -10/Materials | Entered Subcaves 918 | -10/Subcaves | Learned Materials trap positions 925 | -10/Subcaves | Shifting Twisted Machinery released Sub. Machine Gun 943 | -10/Subcaves | A swath of the cavern ceiling suddenly collapsed 1303 | -10/Subcaves | Shifting Twisted Machinery released Sub. Power Source 1304 | -10/Subcaves | Shifting Twisted Machinery released Sub. Beam Cannon 1769 | -10/Subcaves | Discovered new exit (range 13) 2060 | -10/Subcaves | Core integrity fell below 50% 2146 | -10/Subcaves | Discovered new exit (range 10) 2150 | -10/Subcaves | Curiously followed by a Cobbler waking with a query about "LVR3C" 2368 | -10/Subcaves | Shifting Twisted Machinery released Humpback 2371 | -10/Subcaves | Shifting Twisted Machinery released Slug Cannon 2808 | -10/Subcaves | Identified exit to Materials 2815 | -10/Subcaves | Core integrity fell below 20% 3643 | -10/Subcaves | Entered Recycling 4509 | -9/Recycling | Destroyed by Y-45 Defender with Heavy Assault Rifle Last Messages --------------- Rating: 4 Schematic downloaded. 04258_ Y-45 Defender springs to life. 04258_ Battle Rifle destroyed. 04261_ Aluminum Leg destroyed. 04264_ Y-45 Defender suffers critical hit (Destroy). 04264_ Y-45 Defender destroyed. 04271_ R-06 Scavenger collects Heat Sink. 04271_ R-06 Scavenger collects Lgt. Treads. 04272_ R-06 Scavenger collects Beam Rifle. 04273_ Acquired 31 matter. 04314_ Acquired Rocket Launcher. 04482_ Connecting with Terminal... >>Trojan(Botnet) Trojan loaded successfully. Testing... Terminal linked with 1 system. Awaiting botnet instructions. 04503_ Y-45 Defender springs to life. Map ----- +----------------------------------------------------+ | ?????????????????????????????????????????????????? | | ?????????????????????????????????????????????????? | | ?????????????????????????????????????????????????? | | ?????????????????????????????????????????????????? | | ?????????????????????????????????????????????????? | | ?????????????????????????????????????????????????? | | ????????????????????????????????????????????????## | | ????????????????????????????????????????????????# | | ????????????????????????????????????????????????# | | ????????????????????????????????????????????????# | | ????????????????????????????????????????????????# | | ????????????????????????????????????????????????# | | ????????????????????????????????????????????????# | | ????????????????????????????????????????????????# | | ????????????????????????????????????????????????# | | ????????????????????????????????????????????????# | | ????????????????????????????????????????????????## | | ?????????????????????????????????????????????????? | | ??????????????????##????????????????#######??????? | | ????????????????###Y################# #?###### | | ????????????????#% ### | | ????????????????+ ## | | ????????????????# ### | | ????????????????# ######+##### #?# | | ????????????????# # #?## ##?# | | ????????????????# @ """ #??# #??# | | ????????????????# ##### """ #??# #??# | | ?????????????????????????# """ #??# #??# | | ?????????????????????????# #??# #??# | | ?????????????????????????# #??# #??# | | ?????????????????????????# "T" #??# #??# | | ?????????????????????????# """ #??# #??# | | ?????????????????????????# #??# #??###### | | ?????????????????????????##########??# #???????? | | ?????????????????????????????????????### #???????? | | ???????????????????????????????????????# #???????? | | ???????????????????????????????????????# #???????? | | ???????????????????????????????????????# #???????? | | ???????????????????????????????????????# #####???? | | ???????????????????????????????????????# #]]]#???? | | ???????????????????????????????????????# #] ###?? | | ???????????????????????????????????????# #?? | | ???????????????????????????????????????# ### | | ????????????????????????????????????##?# "%# | | ????????????????????????????????????+ | | ????????????????????????????????????# ########+##+ | | ????????????????????????????????????# ????# | | ????????????????????????????????????# ????# | | ????????????????????????????????????# #???# | | ????????????????????????????????????# ##### """ | +----------------------------------------------------+ Best States ------------- Heat Dissipation 25 Energy Generation 10 Energy Capacity 250 Matter Stores 300 Matter Capacity 300 Sight Range 16 Terrain Scan Density 10 Armor Coverage 150 Resistance: KI 20 Resistance: TH 20 Resistance: EX 20 Resistance: EM 20 Resistance: I 20 Resistance: S 20 Resistance: P 20 Evasion (%) 55 Offensive Hacking 10 Item Schematics ----------------- Adv. ECM Suite | -9/Recycling | Hacked Robot Schematics ------------------ None Fabricated ------------ Nothing Repaired ---------- Aluminum Leg | 62% | -10/Materials Ion Engine | 70% | -10/Materials Alien Tech Used ----------------- None Achievements -------------- None Challenges ------------ None Game ------ Seed ChromionDrainedAutohacker Manual? 0 Play Time 00:18:52 Cumulative 251.4 hours Start 2025.06.22 @ 09:40:29 End 2025.06.22 @ 09:58:23 Sessions 1 Manual Loads 0 Difficulty Adventurer Special Mode None Game No. 286 Rogue 0 Adventurer 286 Explorer 0 Win Type - Total 0 Types 0/0/0/0/0/0/0/0/0/0 Lore% 72 Gallery% 59 Achievement% 49 Wizard Run 0 Options --------- Layout 2 ASCII 0 Keyboard 0 Movement Mouse Keybinds 0 Fullscreen 2 Font 48/Smallcaps Map View 50x44 Zoom Use 0% Tactical HUD 1 Map Filters NONE Filters NONE Steam 1 RUN: fb5b81e2-9b74-4c33-96bd-457ffee5bfae